bitfinex/quotes_BTCUSD_20251117
["timestamp","ask_amount","ask_price","bid_price","bid_amount"]
[1763404275726,2.0,92833.0,92820.0,0.0110613]
[1763404276159,2.0,92833.0,92820.0,0.0120613]
[1763404276376,2.0,92833.0,92821.0,0.00570013]
[1763404276841,2.0,92833.0,92820.0,6.131e-05]
[1763404278423,2.0,92833.0,92811.0,0.04306462]
[1763404278643,2.0001317,92833.0,92811.0,0.04306462]
[1763404278878,2.0,92832.0,92811.0,0.04306462]
[1763404279092,0.0001317,92833.0,92800.0,0.74986899]
[1763404279093,0.01863,92812.0,92800.0,0.74986899]
[1763404279295,0.01863,92812.0,92801.0,0.1256039]
[1763404279531,2.0,92832.0,92810.0,0.00999999]
[1763404279723,0.03244121,92817.0,92811.0,0.00811799]
[1763404280145,0.0001317,92833.0,92816.0,0.10716]
[1763404280299,0.0001317,92833.0,92817.0,0.23740918]
[1763404280300,0.03243897,92832.0,92817.0,0.23740918]
[1763404280510,0.03243897,92832.0,92821.0,0.04341874]
[1763404280746,0.03243897,92832.0,92823.0,0.04341874]
[1763404280890,0.0001317,92833.0,92825.0,0.04341874]
[1763404281090,0.04341873,92832.0,92826.0,0.10647273]
[1763404281292,0.04341873,92832.0,92828.0,0.04341874]
[1763404281537,0.04341873,92832.0,92821.0,0.04341874]
[1763404281747,0.09437,92831.0,92821.0,0.04341874]
[1763404281948,0.09437,92831.0,92818.0,0.04341874]
[1763404282155,0.04341873,92832.0,92821.0,0.04341874]
[1763404282378,0.04341873,92832.0,92830.0,0.04341876]
[1763404282568,0.04341873,92832.0,92831.0,0.00811131]
[1763404282784,0.04341873,92832.0,92822.0,0.08810065]
[1763404282973,0.04341873,92832.0,92826.0,0.001]
[1763404283513,0.04341873,92832.0,92822.0,0.03810065]
[1763404283702,0.04341873,92832.0,92831.0,0.001]
[1763404284347,0.18282873,92832.0,92820.0,0.75986898]
[1763404284601,0.18282873,92832.0,92826.0,0.001]
[1763404284793,0.18282873,92832.0,92831.0,0.001]
[1763404285099,0.18282873,92832.0,92826.0,0.001]
[1763404285661,0.18282873,92832.0,92820.0,0.74986899]
[1763404286031,0.13941,92832.0,92831.0,0.001]
[1763404286440,0.13941,92832.0,92820.0,0.75986898]
[1763404286686,0.02004922,92831.0,92820.0,0.75986898]
[1763404286904,0.02004922,92830.0,92820.0,0.74986899]
[1763404287097,0.02004922,92829.0,92820.0,0.83928588]
[1763404287295,0.02004922,92828.0,92821.0,0.00811539]
[1763404287495,0.02004922,92827.0,92822.0,0.0081153]
[1763404287700,0.02004922,92826.0,92822.0,0.0081153]
[1763404287851,0.02004922,92825.0,92823.0,0.08817012]
[1763404288049,0.0200518,92824.0,92823.0,0.08817012]
[1763404288302,0.0200518,92824.0,92818.0,0.04341874]
[1763404288508,0.0200518,92823.0,92818.0,0.04341874]
[1763404288707,0.0530568,92841.0,92830.0,1e-08]
[1763404289759,0.0530568,92841.0,92819.0,0.00811014]
[1763404289941,0.03773,92840.0,92820.0,0.09350579]
[1763404290142,0.09079946,92840.0,92830.0,0.74986899]
[1763404290343,0.09079946,92840.0,92830.0,0.30906456]
[1763404290548,0.09079946,92840.0,92820.0,0.09350579]
[1763404290747,0.01863,92821.0,92819.0,0.0001317]
[1763404291851,0.01901826,92821.0,92819.0,0.0001317]
[1763404291983,0.01863,92821.0,92819.0,0.0011317]
[1763404292189,0.01863,92821.0,92819.0,0.0001317]
[1763404292190,2.00038826,92820.0,92819.0,0.0001317]
[1763404292601,2.00038826,92820.0,92776.0,0.00033658]
[1763404292602,0.00999998,92810.0,92776.0,0.00033658]
[1763404292784,0.04734,92796.0,92780.0,0.74986899]
[1763404293196,0.09243,92795.0,92780.0,0.74986899]
[1763404293399,0.09243,92795.0,92781.0,0.00728707]
[1763404293602,0.09243,92795.0,92780.0,0.74986899]
[1763404293807,0.09243,92795.0,92781.0,0.10366938]
[1763404294016,0.04734,92796.0,92783.0,0.04341874]
[1763404294230,0.00013201,92810.0,92796.0,0.04341874]
[1763404294497,0.00013201,92810.0,92800.0,0.74986899]
[1763404294857,0.00013201,92810.0,92802.0,0.04341874]
[1763404295099,0.00013201,92810.0,92804.0,0.04341874]
[1763404296350,0.00013201,92810.0,92809.0,0.10344874]
[1763404296917,0.00013201,92810.0,92809.0,0.19357874]
[1763404297176,0.00013201,92810.0,92809.0,0.20085257]
[1763404297528,0.00013201,92810.0,92809.0,0.19357874]
[1763404297731,0.00013201,92810.0,92809.0,0.22153086]
[1763404298001,0.00013201,92810.0,92809.0,0.22253086]
[1763404299246,0.00013201,92810.0,92809.0,0.22153086]
[1763404299442,0.00013201,92810.0,92809.0,0.22353086]
[1763404300092,0.00013201,92810.0,92809.0,0.27439086]
[1763404300330,0.00013201,92810.0,92809.0,0.27239086]
[1763404300659,0.00013201,92810.0,92809.0,0.27439086]
[1763404301695,0.00013201,92810.0,92809.0,0.27239086]
[1763404302513,0.05371803,92844.0,92821.0,0.04341874]
[1763404302713,0.02005007,92843.0,92835.0,0.02218]
[1763404302953,0.05385014,92844.0,92837.0,0.04341874]
[1763404302954,0.02005007,92842.0,92837.0,0.04341874]
[1763404303107,0.02005007,92841.0,92837.0,0.04341874]
[1763404303326,0.02005007,92840.0,92837.0,0.04341874]
[1763404303564,0.02005007,92839.0,92837.0,0.04341874]
[1763404303771,0.05385014,92844.0,92837.0,0.04341874]
[1763404303772,0.02005007,92838.0,92837.0,0.04341874]
[1763404303939,0.01626253,92840.0,92837.0,0.04341874]
[1763404304188,0.02005007,92839.0,92837.0,0.04341874]
[1763404304368,0.02005007,92838.0,92837.0,0.04341874]
[1763404305207,0.02005007,92838.0,92837.0,0.04441874]
[1763404305412,0.02005007,92838.0,92837.0,0.14808812]
[1763404306022,0.02005007,92838.0,92837.0,0.002]
[1763404306223,0.02005007,92838.0,92837.0,0.001]
[1763404306741,0.11314804,92838.0,92837.0,0.001]
[1763404307170,0.02071804,92838.0,92837.0,0.001]
[1763404307395,0.02005007,92838.0,92829.0,0.04341874]
[1763404307622,0.02005007,92837.0,92831.0,0.04341874]
[1763404307840,0.02005007,92836.0,92833.0,0.04341874]
[1763404308087,0.02005007,92835.0,92831.0,0.04341874]
[1763404308294,0.00013211,92844.0,92843.0,0.06003]
[1763404308470,0.02014832,92844.0,92843.0,2e-08]
[1763404308648,0.02014832,92844.0,92837.0,0.04341874]
[1763404308871,0.02001621,92843.0,92839.0,0.04341874]
[1763404309210,0.00013211,92844.0,92843.0,0.06982874]
[1763404309545,0.01705159,92844.0,92843.0,0.07708284]
[1763404309789,0.01705159,92844.0,92843.0,0.16031874]
[1763404310461,0.01705159,92844.0,92843.0,0.16757284]
[1763404310642,0.01705159,92844.0,92843.0,0.18844296]
[1763404311059,0.01705159,92844.0,92843.0,0.19469706]
[1763404311255,0.01705159,92844.0,92843.0,0.07354296]
[1763404311421,0.01705159,92844.0,92843.0,0.17717874]
[1763404311620,0.01705159,92844.0,92843.0,0.04641874]
[1763404312048,0.01705159,92844.0,92843.0,0.04441874]
[1763404312260,0.01705159,92844.0,92843.0,0.001]
[1763404312453,0.08360106,92844.0,92843.0,0.002]
[1763404312772,0.03778193,92844.0,92843.0,0.002]
[1763404312972,0.03705246,92844.0,92843.0,0.001]
[1763404313183,0.03705246,92844.0,92843.0,0.07081874]
[1763404313388,0.01705159,92844.0,92843.0,0.06251361]
[1763404313583,0.01705159,92844.0,92843.0,0.06151361]
[1763404313986,0.01705159,92844.0,92843.0,0.06051361]
[1763404314396,0.01705159,92844.0,92843.0,0.06151361]
[1763404314785,0.01705159,92844.0,92843.0,0.06976771]
[1763404314999,0.01705159,92844.0,92843.0,0.09515771]
[1763404315212,0.01705159,92844.0,92843.0,0.18528771]
[1763404315675,0.01705159,92844.0,92843.0,0.18628771]
[1763404316104,0.96104,92852.0,92843.0,0.18628771]
[1763404316309,0.0002,92890.0,92861.0,0.04341874]
[1763404316515,0.00033209,92880.0,92879.0,0.10208874]
[1763404316686,0.00033209,92880.0,92879.0,0.11229761]
[1763404316895,0.00033209,92880.0,92879.0,0.20242761]
[1763404317798,0.0173504,92880.0,92879.0,0.20242761]
[1763404317968,0.00033209,92880.0,92879.0,0.20242761]
[1763404318175,0.00033209,92880.0,92879.0,0.20442761]
[1763404318381,0.00033209,92880.0,92879.0,0.11429761]
[1763404318582,0.00033209,92880.0,92879.0,0.11229761]
[1763404318745,0.00033209,92880.0,92879.0,0.09889761]
[1763404318949,0.01746208,92880.0,92879.0,0.09989761]
[1763404319872,0.01746208,92880.0,92879.0,0.05662761]
[1763404320066,0.01746208,92880.0,92879.0,0.04641874]
[1763404320284,0.01746208,92880.0,92879.0,0.20980874]
[1763404320491,0.01746208,92880.0,92879.0,0.21704196]
[1763404320706,0.01746208,92880.0,92879.0,0.20780874]
[1763404320911,0.01746208,92880.0,92879.0,0.12896961]
[1763404321127,0.01746208,92880.0,92879.0,0.04541874]
[1763404321365,0.01746208,92880.0,92879.0,0.002]
[1763404321566,0.08211208,92880.0,92879.0,0.001]
[1763404321768,0.08289121,92880.0,92879.0,0.001]
[1763404322009,0.08289121,92880.0,92879.0,0.003]
[1763404322010,0.1028576,92880.0,92879.0,0.003]
[1763404322274,0.10207847,92880.0,92879.0,0.002]
[1763404322478,0.1028576,92880.0,92879.0,0.003]
[1763404322735,0.0382076,92880.0,92879.0,0.003]
[1763404323124,0.03742847,92880.0,92879.0,0.001]
[1763404323302,0.12921847,92880.0,92879.0,0.001]
[1763404323529,0.12921847,92880.0,92806.0,0.03811334]
[1763404323530,2.05369712,92879.0,92821.0,0.09962]
[1763404323731,0.04905,92845.0,92821.0,0.19622332]
[1763404324085,0.04905,92845.0,92814.0,0.04527]
[1763404324297,0.04916,92853.0,92838.0,0.00725574]
[1763404324499,0.04916,92853.0,92830.0,0.95262479]
[1763404324704,0.04916,92858.0,92839.0,0.04341874]
[1763404324931,0.04916,92858.0,92841.0,0.04341874]
[1763404325346,0.04916,92858.0,92843.0,0.04341874]
[1763404325766,0.04916,92858.0,92840.0,0.01602922]
[1763404325767,0.09179,92857.0,92841.0,0.04341874]
[1763404325974,0.09257812,92857.0,92839.0,0.00013209]
[1763404326795,0.04916,92858.0,92839.0,0.00013209]
[1763404327004,0.06978128,92880.0,92841.0,0.04341874]
[1763404327005,0.09179,92875.0,92841.0,0.04341874]
[1763404327213,0.04916,92859.0,92843.0,0.04341874]
[1763404327627,0.14095,92859.0,92839.0,0.00013209]
[1763404328075,0.09179,92858.0,92840.0,0.04341874]
[1763404328283,0.09179,92858.0,92839.0,0.00113209]
[1763404328499,0.9426248,92850.0,92839.0,0.00113209]
[1763404328910,0.09257812,92849.0,92839.0,0.00113209]
[1763404329324,0.09257812,92849.0,92839.0,0.00013209]
[1763404329535,0.09257812,92849.0,92839.0,0.00738625]
[1763404329746,0.001,92858.0,92839.0,0.00838625]
[1763404329956,0.04916,92859.0,92839.0,0.00838625]
[1763404329957,0.09179,92851.0,92839.0,0.00113209]
[1763404330160,0.09179,92851.0,92839.0,0.00013209]
[1763404330372,0.0007929,92850.0,92839.0,0.00013209]
[1763404330580,0.14095,92859.0,92839.0,0.008386]
[1763404330785,0.04916,92859.0,92850.0,0.02218]
[1763404330997,0.04916,92859.0,92851.0,0.00724795]
[1763404331206,0.05366457,92868.0,92851.0,0.00724795]
[1763404331207,2.05366457,92868.0,92851.0,0.00724795]
[1763404331404,2.05366457,92868.0,92850.0,0.02218]
[1763404331405,0.04916,92859.0,92850.0,0.02218]
[1763404331613,0.05361658,92866.0,92851.0,0.00724795]
[1763404331815,0.05361623,92871.0,92852.0,0.04341874]
[1763404332016,0.05361623,92871.0,92854.0,0.04341874]
[1763404332222,0.05341353,92869.0,92854.0,0.04341874]
[1763404332462,0.09179,92871.0,92855.0,0.00724362]
[1763404332463,0.05361623,92871.0,92855.0,0.00724362]
[1763404332707,0.04916,92856.0,92850.0,0.02318]
[1763404332936,0.04916,92856.0,92850.0,0.001]
[1763404333178,0.09179,92855.0,92836.0,0.02218]
[1763404333409,0.0925829,92855.0,92823.0,0.09962]
[1763404333648,0.0925829,92855.0,92831.0,0.02218]
[1763404334983,0.0925829,92855.0,92827.0,0.04341874]
[1763404335673,0.02005705,92854.0,92827.0,0.04341874]
[1763404335893,0.02005705,92853.0,92827.0,0.04341874]
[1763404336122,0.02005705,92852.0,92827.0,0.04341874]
[1763404336345,0.11184705,92852.0,92827.0,0.04341874]
[1763404336568,0.02085361,92851.0,92827.0,0.04341874]
[1763404336791,0.02005705,92850.0,92827.0,0.04341874]
[1763404337011,0.02005705,92849.0,92827.0,0.04341874]
[1763404337186,0.02005705,92848.0,92827.0,0.04341874]
[1763404337404,0.02005705,92847.0,92827.0,0.04341874]
[1763404337632,0.02005705,92846.0,92827.0,0.04341874]
[1763404337784,0.02005705,92845.0,92827.0,0.04341874]
[1763404337998,0.06465,92840.0,92800.0,0.09962]
[1763404338170,0.5,92848.0,92788.0,0.09962]
[1763404338386,0.06465,92838.0,92788.0,0.09962]
[1763404338991,0.06465,92838.0,92797.0,0.00726071]
[1763404339188,0.06465,92838.0,92797.0,0.14303874]
[1763404339555,0.06565,92838.0,92797.0,0.14303874]
[1763404339772,0.9426248,92820.0,92784.0,0.09962]
[1763404340022,0.95262478,92830.0,92785.0,0.02184033]
[1763404340227,0.95262478,92830.0,92786.0,0.10689663]
[1763404340428,0.04916,92829.0,92793.0,0.04341874]
[1763404340852,0.04916,92829.0,92787.0,0.04341874]
[1763404341074,0.04916,92829.0,92789.0,0.04341874]
[1763404341516,0.04916,92829.0,92791.0,0.04341874]
[1763404341942,0.04916,92829.0,92788.0,0.01650112]
[1763404341943,0.9426248,92820.0,92789.0,0.04341874]
[1763404342098,0.9426248,92820.0,92785.0,0.02184033]
[1763404342282,0.9426248,92820.0,92787.0,0.04341874]
[1763404343293,0.03244525,92823.0,92789.0,0.04341874]
[1763404343499,0.03244525,92823.0,92791.0,0.04341874]
[1763404343713,0.9426248,92820.0,92789.0,0.04341874]
[1763404343980,0.07707,92822.0,92791.0,0.04341874]
[1763404344191,0.03244525,92823.0,92793.0,0.04341874]
[1763404344192,0.07707,92821.0,92793.0,0.04341874]
[1763404344941,0.07707,92821.0,92794.0,0.00727626]
[1763404345194,0.07707,92821.0,92793.0,0.04341874]
[1763404345745,0.9426248,92820.0,92793.0,0.04341874]
[1763404346093,0.07914,92819.0,92793.0,0.04341874]
[1763404346334,0.07914,92819.0,92794.0,0.0131944]
[1763404346690,0.07814,92819.0,92794.0,0.0131944]
[1763404347272,0.052957,92829.0,92795.0,0.04341874]
[1763404347481,2.0,92828.0,92797.0,0.04341874]
[1763404347689,2.0,92826.0,92799.0,0.04341874]
[1763404348109,0.10638262,92829.0,92801.0,0.04341874]
[1763404348330,0.10638262,92829.0,92803.0,0.04341874]
[1763404348569,0.004797,92829.0,92828.0,0.01473]
[1763404348763,0.003797,92829.0,92828.0,0.11889874]
[1763404349017,0.003797,92829.0,92828.0,0.22393861]
[1763404349676,0.003797,92829.0,92828.0,0.05544072]
[1763404349875,0.003797,92829.0,92828.0,0.04355085]
[1763404350840,0.02381921,92829.0,92828.0,0.04355085]
[1763404351042,0.02381921,92829.0,92828.0,0.04455085]
[1763404351240,0.02381921,92829.0,92828.0,0.20290085]
[1763404351426,0.02381921,92829.0,92828.0,0.13075093]
[1763404351630,0.02381921,92829.0,92828.0,0.23509373]
[1763404351852,0.003797,92829.0,92828.0,0.22783093]
[1763404352063,0.01670767,92880.0,92831.0,0.04341874]
[1763404352275,0.01670767,92880.0,92861.0,0.04341874]
[1763404352276,0.03242519,92876.0,92861.0,0.04341874]
[1763404352495,0.01670767,92880.0,92876.0,0.04341874]
[1763404352720,0.01670767,92880.0,92878.0,0.06346874]
[1763404352932,0.01670767,92880.0,92878.0,0.07070254]
[1763404352933,0.07506719,92879.0,92878.0,0.07070254]
[1763404353154,0.055,92879.0,92878.0,0.16678254]
[1763404353381,0.05513201,92879.0,92878.0,0.16678254]
[1763404354212,0.05513201,92879.0,92878.0,0.15954874]
[1763404354423,0.05513201,92879.0,92878.0,0.1809407]
[1763404355170,0.0002,92890.0,92880.0,0.00999999]
[1763404355387,0.0002,92890.0,92889.0,0.16046206]
[1763404355388,0.0006402,92890.0,92889.0,0.16046206]
[1763404355604,0.0006402,92890.0,92889.0,0.16768949]
[1763404356041,0.01748927,92890.0,92889.0,0.25654206]
[1763404356262,0.0002,92930.0,92890.0,0.05341873]
[1763404356487,0.00033198,92910.0,92909.0,0.14528874]
[1763404356699,0.00033198,92910.0,92909.0,0.15981761]
[1763404357149,0.00033198,92910.0,92900.0,0.04311]
[1763404357150,0.01712437,92910.0,92900.0,0.04311]
[1763404357371,0.00033198,92910.0,92901.0,0.04341874]
[1763404357603,0.00033198,92910.0,92895.0,0.04311]
[1763404357821,0.06226,92901.0,92889.0,0.002]
[1763404358048,0.01893,92909.0,92888.0,0.04311]
[1763404358290,0.01893,92909.0,92870.0,0.95262479]
[1763404358291,0.10054084,92908.0,92870.0,0.00999999]
[1763404358507,0.01997084,92907.0,92879.0,0.04341874]
[1763404358738,0.01997084,92906.0,92879.0,0.04341874]
[1763404358991,0.01997084,92905.0,92881.0,0.04341874]
[1763404359201,0.017346,92910.0,92881.0,0.04341874]
[1763404359423,0.01996092,92909.0,92883.0,0.04341874]
[1763404359668,0.01996092,92908.0,92883.0,0.04341874]
[1763404359966,0.01996092,92907.0,92885.0,0.04341874]
[1763404360223,0.017346,92910.0,92893.0,0.04341874]
[1763404360497,0.017346,92910.0,92909.0,0.04311]
[1763404361147,0.017346,92910.0,92909.0,0.20146]
[1763404361360,0.017346,92910.0,92909.0,0.27224058]
[1763404361568,0.017346,92910.0,92909.0,0.26502474]
[1763404362404,0.0002,92920.0,92910.0,0.80205248]
[1763404362611,0.01720369,92920.0,92919.0,0.17312206]
[1763404362844,0.0002,92920.0,92919.0,0.19764432]
[1763404363059,0.01751282,92920.0,92919.0,0.19043427]
[1763404363274,0.01751282,92920.0,92919.0,0.06073095]
[1763404363482,0.10002379,92920.0,92909.0,0.020146]
[1763404363701,0.09808282,92920.0,92909.0,0.001]
[1763404363917,0.09808282,92920.0,92897.0,0.04311]
[1763404364146,0.09808282,92920.0,92897.0,0.00013198]
[1763404364147,0.84671657,92920.0,92897.0,0.00013198]
[1763404364369,0.10045189,92919.0,92897.0,0.00013198]
[1763404364588,0.01988189,92918.0,92897.0,0.00013198]
[1763404364806,0.01988189,92917.0,92897.0,0.00013198]
[1763404365018,0.01988189,92916.0,92897.0,0.00013198]
[1763404365225,0.01751282,92920.0,92897.0,0.00013198]
[1763404365464,0.01751282,92920.0,92899.0,0.04341874]
[1763404365668,0.01751282,92920.0,92900.0,0.02190134]
[1763404365884,0.01751282,92920.0,92900.0,0.11498134]
[1763404366102,0.01751282,92920.0,92901.0,0.04341874]
[1763404366315,0.01751282,92920.0,92919.0,0.10568874]
[1763404366524,0.01751282,92920.0,92919.0,0.10989877]
[1763404366750,0.01751282,92920.0,92919.0,0.21696865]
[1763404366955,0.01751282,92920.0,92919.0,0.21275862]
[1763404367175,0.00997906,92920.0,92919.0,0.21275862]
[1763404367387,0.0002,92930.0,92920.0,0.04341874]
[1763404367802,0.0002,92930.0,92929.0,0.08816874]
[1763404368038,0.01735901,92930.0,92919.0,0.01098988]
[1763404368253,0.12962,92929.0,92919.0,0.002]
[1763404368890,0.08057,92928.0,92919.0,0.002]
[1763404369108,2.01985107,92927.0,92919.0,0.002]
[1763404369353,0.79768375,92929.0,92879.0,0.04475]
[1763404369354,0.10042107,92926.0,92879.0,0.04475]
[1763404369560,0.74863375,92920.0,92879.0,0.0004402]
[1763404369767,0.08057,92926.0,92920.0,0.001]
[1763404369977,0.00999998,92920.0,92871.0,0.04341874]
[1763404370184,0.00999998,92920.0,92870.0,0.75863374]
[1763404370185,0.01985342,92919.0,92883.0,0.09660332]
[1763404370390,0.01985342,92918.0,92873.0,0.04341874]
[1763404370609,0.01985342,92918.0,92885.0,0.04341874]
[1763404370816,0.09072,92917.0,92885.0,0.04341874]
[1763404371034,0.01985342,92916.0,92891.0,0.04341874]
[1763404371254,0.01985342,92916.0,92890.0,0.74863375]
[1763404371255,0.09072,92917.0,92901.0,0.04341874]
[1763404371460,0.11059395,92916.0,92893.0,0.04341874]
[1763404371664,0.01987395,92915.0,92893.0,0.04341874]
[1763404371883,0.09072,92916.0,92896.0,0.04341874]
[1763404372085,0.09071,92915.0,92898.0,0.04341874]
[1763404372259,0.09071,92915.0,92900.0,0.04341874]
[1763404372585,0.09071,92915.0,92898.0,0.04341874]
[1763404373132,0.09071,92915.0,92880.0,0.75863374]
[1763404373133,0.01989741,92914.0,92882.0,0.04341874]
[1763404373335,0.01989741,92913.0,92882.0,0.04341874]
[1763404373561,0.11060741,92912.0,92887.0,0.04341874]
[1763404373780,0.01989741,92911.0,92887.0,0.04341874]
[1763404373943,0.01989741,92910.0,92887.0,0.04341874]
[1763404374149,0.01989741,92909.0,92887.0,0.04341874]
[1763404374414,0.05355168,92917.0,92870.0,0.75863374]
[1763404374415,0.11060741,92908.0,92871.0,0.04341874]
[1763404374620,0.01989741,92907.0,92871.0,0.04341874]
[1763404374824,0.00097081,92886.0,92871.0,0.04341874]
[1763404375004,0.00097081,92886.0,92872.0,0.00423032]
[1763404375238,0.00097081,92886.0,92873.0,0.04341874]
[1763404375440,0.00097081,92886.0,92877.0,0.04341874]
[1763404375638,0.00097081,92886.0,92885.0,0.04778045]
[1763404376298,0.00097081,92886.0,92885.0,0.04878045]
[1763404377484,0.00097081,92886.0,92885.0,0.04778045]
[1763404378956,0.00097081,92886.0,92885.0,0.04878045]
[1763404379159,0.00097081,92886.0,92885.0,0.04778045]
[1763404379361,0.02101048,92886.0,92885.0,0.04778045]
[1763404379556,0.02101048,92886.0,92885.0,0.04878045]
[1763404380543,0.11236048,92886.0,92885.0,0.04455072]
[1763404380708,0.11236048,92886.0,92885.0,0.00113198]
[1763404380918,0.11236048,92886.0,92863.0,0.02319141]
[1763404380919,0.18247857,92886.0,92863.0,0.02319141]
[1763404381129,0.04994,92864.0,92863.0,0.0004402]
[1763404381336,0.15979967,92864.0,92863.0,0.0004402]
[1763404381767,0.15979967,92864.0,92825.0,0.04475]
[1763404381992,0.74863375,92840.0,92825.0,0.00013201]
[1763404382200,0.04785,92841.0,92825.0,0.00013201]
[1763404382201,0.04792,92826.0,92825.0,0.00013201]
[1763404382438,0.04785,92841.0,92826.0,0.09660332]
[1763404382683,0.85225375,92840.0,92825.0,0.00013201]
[1763404382885,0.02008,92839.0,92825.0,0.00013201]
[1763404383114,0.02008,92838.0,92825.0,0.00013201]
[1763404383344,0.02008,92837.0,92825.0,0.00113201]
[1763404383554,0.02008,92836.0,92825.0,0.00113201]
[1763404383765,0.06435,92826.0,92825.0,0.00013201]
[1763404383988,0.08443,92826.0,92825.0,0.00013201]
[1763404384190,0.10426,92826.0,92825.0,0.00013201]
[1763404384400,0.15782719,92826.0,92825.0,0.00013201]
[1763404384641,0.15782719,92826.0,92825.0,2.01e-06]
[1763404384850,0.01999997,92820.0,92790.0,0.0004]
[1763404385063,0.04877,92791.0,92790.0,0.00053211]
[1763404385271,0.06885,92791.0,92790.0,0.00053211]
[1763404385491,0.02008,92791.0,92790.0,0.00481695]
[1763404385697,0.04792,92807.0,92790.0,0.00481695]
[1763404385946,0.01997973,92806.0,92797.0,0.04341874]
[1763404386151,0.01997973,92805.0,92791.0,0.04341874]
[1763404386350,0.13257,92807.0,92794.0,0.04341874]
[1763404386562,0.01995676,92806.0,92796.0,0.04341874]
[1763404386764,0.04792,92807.0,92796.0,0.04341874]
[1763404386765,0.01995676,92805.0,92796.0,0.04341874]
[1763404386986,0.01995676,92804.0,92791.0,0.04341874]
[1763404387229,0.10170809,92814.0,92798.0,0.04341874]
[1763404387576,0.01993919,92813.0,92800.0,0.04341874]
[1763404387786,0.01993919,92812.0,92802.0,0.04341874]
[1763404388012,0.04792,92814.0,92802.0,0.04341874]
[1763404388682,0.05397016,92813.0,92802.0,0.04341874]
[1763404388893,0.06435,92803.0,92790.0,0.00053211]
[1763404389105,0.06435,92803.0,92802.0,0.001]
[1763404389309,0.0537584,92812.0,92792.0,0.09660332]
[1763404389513,2.0,92810.0,92793.0,0.14002206]
[1763404389719,0.08465,92809.0,92792.0,0.04341874]
[1763404389930,2.0,92808.0,92795.0,0.04341874]
[1763404390137,2.0,92811.0,92797.0,0.04341874]
[1763404390345,2.05319556,92811.0,92797.0,0.04341874]
[1763404390556,2.0,92810.0,92797.0,0.04341874]
[1763404390977,2.0,92809.0,92797.0,0.04341874]
[1763404391410,2.0,92809.0,92799.0,0.04341874]
[1763404391634,2.0,92809.0,92801.0,0.04341874]
[1763404392333,2.0,92801.0,92792.0,0.04341874]
[1763404392540,2.0,92801.0,92798.0,0.04341874]
[1763404392741,2.0,92807.0,92798.0,0.04341874]
[1763404392918,2.0,92807.0,92802.0,0.04341874]
[1763404393164,2.0,92807.0,92803.0,0.01306051]
[1763404393421,0.05386475,92810.0,92803.0,0.00427676]
[1763404393422,2.0,92809.0,92803.0,0.00427676]
[1763404393638,2.0,92809.0,92801.0,0.001]
[1763404393856,2.0,92809.0,92802.0,0.004276]
[1763404394070,2.0,92809.0,92801.0,0.001]
[1763404394275,2.0,92809.0,92795.0,0.09660332]
[1763404394483,2.0,92809.0,92796.0,0.08972841]
[1763404394705,2.05307883,92809.0,92796.0,0.08972841]
[1763404394929,2.0,92808.0,92796.0,0.08545027]
[1763404395157,2.0,92807.0,92802.0,0.001]
[1763404395365,2.0,92807.0,92798.0,0.04341874]
[1763404397227,0.05343585,92808.0,92798.0,0.04341874]
[1763404397427,2.0,92807.0,92799.0,0.01837996]
[1763404397641,2.0,92807.0,92799.0,0.09660332]
[1763404399017,2.0,92807.0,92799.0,0.09760332]
[1763404399240,2.0,92807.0,92799.0,0.001]
[1763404399454,2.0,92807.0,92800.0,0.09660332]
[1763404399673,2.0,92807.0,92799.0,0.001]
[1763404399898,0.06172,92800.0,92799.0,0.001]
[1763404400129,2.06172,92800.0,92799.0,0.001]
[1763404400371,2.08527,92800.0,92799.0,0.001]
[1763404400606,2.0,92799.0,92790.0,0.00053211]
[1763404400835,0.04735,92791.0,92790.0,0.00053211]
[1763404401531,2.0,92807.0,92799.0,0.001]
[1763404401757,2.0,92806.0,92792.0,0.09660332]
[1763404401973,2.0,92806.0,92790.0,0.00053211]
[1763404401974,2.0,92799.0,92793.0,0.01405542]
[1763404402220,2.0,92805.0,92790.0,0.00253211]
[1763404402464,2.0,92806.0,92792.0,0.09660332]
[1763404402693,2.0,92804.0,92793.0,0.00428016]
[1763404402898,0.0191,92809.0,92793.0,0.00428016]
[1763404402899,2.05388956,92807.0,92794.0,0.01014156]
[1763404403120,2.05388956,92807.0,92795.0,0.00427927]
[1763404403325,2.0,92806.0,92795.0,0.00427927]
[1763404403744,2.0,92806.0,92799.0,0.001]
[1763404403945,2.0,92806.0,92800.0,0.00427797]
[1763404404228,2.0,92806.0,92799.0,0.01120242]
[1763404404438,1.82728525,92806.0,92799.0,0.01120242]
[1763404404642,2.0,92807.0,92800.0,0.00427797]
[1763404404850,0.05343585,92808.0,92806.0,2e-08]
[1763404405295,0.0191,92809.0,92807.0,0.15246]
[1763404405503,0.0191,92809.0,92808.0,0.0200154]
[1763404405718,0.01909998,92800.0,92799.0,0.05562116]
[1763404406123,0.01909998,92800.0,92799.0,0.11743116]
[1763404406608,0.01909998,92800.0,92799.0,0.20808116]
[1763404407019,0.01909998,92800.0,92799.0,0.20708116]
[1763404407454,0.01909998,92800.0,92799.0,0.11643116]
[1763404408109,0.01909998,92800.0,92799.0,0.20708116]
[1763404408556,0.05358267,92831.0,92799.0,0.20708116]
[1763404408557,0.05358835,92850.0,92822.0,0.04341874]
[1763404408778,2.0,92833.0,92824.0,0.04341874]
[1763404409001,0.04735,92842.0,92824.0,0.04341874]
[1763404409002,2.0,92841.0,92826.0,0.04341874]
[1763404409213,2.0,92847.0,92836.0,0.04341874]
[1763404409466,2.0,92847.0,92838.0,0.04341874]
[1763404409689,2.0,92847.0,92836.0,0.04341874]
[1763404409912,2.0,92847.0,92835.0,0.09660332]
[1763404410140,0.09455,92846.0,92836.0,0.00966033]
[1763404410370,2.0,92845.0,92836.0,0.00966033]
[1763404411060,2.0,92847.0,92836.0,0.01066033]
[1763404411279,2.0,92847.0,92837.0,0.01072637]
[1763404411512,2.0,92847.0,92838.0,0.04341874]
[1763404411966,2.0,92859.0,92847.0,0.04341874]
[1763404412180,2.0,92859.0,92858.0,0.18313206]
[1763404412398,0.00022846,92860.0,92859.0,0.04341874]
[1763404412613,0.00022846,92860.0,92859.0,0.21344307]
[1763404413310,0.00022846,92860.0,92859.0,0.09655874]
[1763404413749,0.00022846,92860.0,92859.0,0.09855874]
[1763404413968,0.00022846,92860.0,92859.0,0.06907727]
[1763404414229,0.00022846,92860.0,92859.0,0.06455236]
[1763404414438,0.00022846,92860.0,92859.0,0.06655236]
[1763404414929,0.09992846,92860.0,92859.0,0.002]
[1763404415565,0.00570846,92860.0,92859.0,0.002]